fUSD/lending_fUSD_20250330
["ID","MTS","AMOUNT","RATE_DAILY","PERIOD"]
[356868645,1743346257638,-1289.53,0.00050958,7]
[356868646,1743346257648,-500.0,0.00050958,120]
[356868647,1743346257657,-2763.1,0.00050958,120]
[356868648,1743346257667,-152.7638067,0.00050958,120]
[356868649,1743346257676,-521.18,0.00050958,120]
[356868650,1743346257687,-3033.67,0.00050958,120]
[356868651,1743346257698,-500.0,0.00050958,120]
[356868652,1743346257708,-500.0,0.00050958,120]
[356868653,1743346257718,-500.0,0.00050958,120]
[356868654,1743346257727,-500.0,0.00050958,120]
[356868655,1743346257737,-500.0,0.00050958,120]
[356868656,1743346257747,-500.0,0.00050958,120]
[356868657,1743346257756,-500.0,0.00050958,120]
[356868658,1743346257766,-1628.66,0.00050958,120]
[356868659,1743346257776,-500.0,0.00050958,120]
[356868660,1743346257785,-500.0,0.00050958,120]
[356868661,1743346257795,-228.11421741,0.00050958,120]
[356868662,1743346257804,-500.0,0.00050958,120]
[356868663,1743346257816,-500.0,0.00050958,120]
[356868664,1743346257825,-500.0,0.00050958,120]
[356868665,1743346257835,-2681.66,0.00050958,120]
[356868666,1743346257846,-500.0,0.00050958,120]
[356868667,1743346257855,-500.0,0.00050958,120]
[356868668,1743346257865,-159.96,0.00051199,120]
[356868669,1743346257874,-1173.0,0.000512,2]
[356868670,1743346257883,-179.1330693,0.00051232,120]
[356868671,1743346257893,-170.74073681,0.00051232,120]
[356868672,1743346257902,-808.39,0.00051232,120]
[356868673,1743346257912,-1090.28,0.00051232,120]
[356868674,1743346257924,-500.0,0.00051232,120]
[356868675,1743346257934,-2456.74,0.00051232,120]
[356868676,1743346257944,-500.0,0.00051232,120]
[356868677,1743346257953,-240.56544211,0.00051232,120]
[356868678,1743346257964,-500.0,0.00051232,120]
[356868679,1743346257973,-500.0,0.00051232,120]
[356868680,1743346257983,-171.77457516,0.00051232,120]
[356868681,1743346257992,-589.26,0.00051232,120]
[356868682,1743346258003,-212.34736553,0.00051232,120]
[356868683,1743346258015,-500.0,0.00051232,120]
[356868684,1743346258025,-500.0,0.00051232,120]
[356868685,1743346258034,-500.0,0.00051232,120]
[356868686,1743346258044,-2232.9,0.00051232,120]
[356868687,1743346258054,-500.0,0.00051232,120]
[356868688,1743346258063,-699.29,0.00051232,120]
[356868689,1743346258073,-500.0,0.00051232,120]
[356868690,1743346258082,-500.0,0.00051232,120]
[356868691,1743346258092,-500.0,0.00051232,120]
[356868692,1743346258102,-500.0,0.00051232,120]
[356868693,1743346258111,-234.24,0.00051232,7]
[356868694,1743346258120,-500.0,0.00051232,120]
[356868695,1743346258130,-506.44,0.00051232,120]
[356868696,1743346258139,-500.0,0.00051232,120]
[356868697,1743346258148,-500.0,0.00051232,120]
[356868698,1743346258158,-546.97660663,0.00051232,120]
[356868699,1743346258168,-500.0,0.00051232,120]
[356868700,1743346258177,-732.51,0.00051232,120]
[356868701,1743346258187,-2815.39,0.00051232,120]
[356868702,1743346258198,-500.0,0.00051232,120]
[356868703,1743346258207,-500.0,0.00051232,120]
[356868704,1743346258216,-500.0,0.00051232,120]
[356868705,1743346258226,-500.0,0.00051232,120]
[356868706,1743346258235,-1274.94,0.00051232,120]
[356868707,1743346258244,-500.0,0.00051232,120]
[356868708,1743346258253,-500.0,0.00051232,120]
[356868709,1743346258263,-500.0,0.00051232,120]
[356868710,1743346258272,-1080.01,0.00051232,100]
[356868711,1743346258281,-500.0,0.00051232,120]
[356868712,1743346258290,-503.33,0.00051232,120]
[356868713,1743346258300,-274.41050873,0.00051232,120]
[356868714,1743346258309,-500.0,0.00051232,120]
[356868715,1743346258319,-500.0,0.00051232,120]
[356868716,1743346258328,-500.0,0.00051232,120]
[356868717,1743346258337,-500.0,0.00051232,120]
[356868718,1743346258347,-501.06,0.00051232,120]
[356868719,1743346258356,-500.0,0.00051232,120]
[356868720,1743346258365,-512.55,0.00051232,120]
[356868721,1743346258374,-5054.95,0.00051232,120]
[356868722,1743346258383,-500.0,0.00051232,120]
[356868723,1743346258393,-1035.75,0.00051232,120]
[356868724,1743346258402,-500.0,0.00051232,120]
[356868725,1743346258411,-500.0,0.00051232,120]
[356868726,1743346258421,-500.0,0.00051232,120]
[356868727,1743346258430,-500.0,0.00051232,120]
[356868728,1743346258439,-505.69058512,0.00051232,120]
[356868729,1743346258449,-935.26,0.00051232,120]
[356868730,1743346258459,-1671.16,0.00051232,120]
[356868731,1743346258468,-1184.02,0.00051232,120]
[356868732,1743346258478,-178.43094902,0.00051232,120]
[356868733,1743346258487,-500.0,0.00051232,120]
[356868734,1743346258496,-804.42,0.00051232,120]
[356868735,1743346258505,-500.0,0.00051232,120]
[356868736,1743346258514,-342.20139841,0.00051232,120]
[356868737,1743346258524,-500.0,0.00051232,120]
[356868738,1743346258534,-500.0,0.00051232,120]
[356868739,1743346258543,-500.0,0.00051232,120]
[356868740,1743346258553,-1247.17,0.00051232,120]
[356868741,1743346258563,-500.0,0.00051232,120]
[356868742,1743346258573,-500.0,0.00051232,120]
[356868743,1743346258585,-500.0,0.00051232,120]
[356868744,1743346258594,-500.0,0.00051232,120]
[356868745,1743346258604,-500.0,0.00051232,120]
[356868746,1743346258613,-500.0,0.00051232,120]
[356868747,1743346258623,-500.0,0.00051232,120]
[356868748,1743346258632,-500.0,0.00051232,120]
[356868749,1743346258641,-500.0,0.00051232,120]
[356868750,1743346258651,-3995.83,0.00051232,120]
[356868751,1743346258660,-500.0,0.00051232,120]
[356868752,1743346258669,-500.0,0.00051232,120]
[356868753,1743346258678,-500.0,0.00051232,120]
[356868754,1743346258687,-551.86,0.00051232,120]
[356868755,1743346258698,-502.05506181,0.00051232,120]
[356868756,1743346258707,-500.0,0.00051232,120]
[356868757,1743346258716,-1144.31,0.00051232,120]
[356868758,1743346258726,-500.0,0.00051232,120]
[356868759,1743346258735,-500.0,0.00051232,120]
[356868760,1743346258744,-500.0,0.00051232,120]
[356868761,1743346258753,-5469.89,0.00051232,120]
[356868762,1743346258764,-500.0,0.00051232,120]
[356868763,1743346258773,-500.0,0.00051232,120]
[356868764,1743346258783,-500.0,0.00051232,120]
[356868765,1743346258792,-634.12,0.00051232,120]
[356868766,1743346258887,-500.0,0.00051232,120]
[356868767,1743346258897,-500.0,0.00051232,120]
[356868768,1743346258906,-500.0,0.00051232,120]
[356868769,1743346258916,-765.27,0.00051232,120]
[356868770,1743346258927,-553.68,0.00051232,120]
[356868771,1743346258937,-500.0,0.00051232,120]
[356868772,1743346258947,-205.39644861,0.00051232,120]
[356868773,1743346258957,-1194.86,0.00051232,120]
[356868774,1743346258967,-1492.47,0.00051232,120]
[356868775,1743346258976,-500.0,0.00051232,120]
[356868776,1743346258986,-1345.57,0.00051232,120]
[356868777,1743346258997,-634.73,0.00051232,120]
[356868778,1743346259006,-500.0,0.00051232,120]
[356868779,1743346259016,-542.75,0.00051232,120]
[356868780,1743346259025,-500.0,0.00051232,120]
[356868781,1743346259035,-942.51,0.00051232,120]
[356868782,1743346259044,-1289.53,0.00051232,7]
[356868783,1743346259053,-500.0,0.00051232,120]
[356868784,1743346259063,-2763.1,0.00051232,120]
[356868785,1743346259072,-521.18,0.00051232,120]
[356868786,1743346259081,-3033.67,0.00051232,120]
[356868787,1743346259090,-500.0,0.00051232,120]
[356868788,1743346259100,-500.0,0.00051232,120]
[356868789,1743346259109,-500.0,0.00051232,120]
[356868790,1743346259119,-500.0,0.00051232,120]
[356868791,1743346259128,-500.0,0.00051232,120]
[356868792,1743346259137,-500.0,0.00051232,120]
[356868793,1743346259146,-463.83671553,0.00051232,120]
[356868794,1743346259155,-1628.66,0.00051232,120]
[356868795,1743346259164,-500.0,0.00051232,120]
[356868796,1743346259173,-500.0,0.00051232,120]
[356868797,1743346259183,-500.0,0.00051232,120]
[356868798,1743346259192,-500.0,0.00051232,120]
[356868799,1743346259202,-500.0,0.00051232,120]
[356868800,1743346259212,-2681.66,0.00051232,120]
[356868801,1743346259220,-500.0,0.00051232,120]
[356868802,1743346259230,-261.95,0.00051325,2]
[356868803,1743346259239,-184.02252578,0.00051413,2]
[356868804,1743346259248,-808.39,0.00051506,120]
[356868805,1743346259258,-1090.28,0.00051506,120]
[356868806,1743346259267,-500.0,0.00051506,120]
[356868807,1743346259276,-2456.74,0.00051506,120]
[356868808,1743346259286,-500.0,0.00051506,120]
[356868809,1743346259295,-218.40723914,0.00051506,120]
[356868810,1743346259304,-500.0,0.00051506,120]
[356868811,1743346259314,-589.26,0.00051506,120]
[356868812,1743346259323,-386.1402654,0.00051506,120]
[356868813,1743346259333,-500.0,0.00051506,120]
[356868814,1743346259342,-500.0,0.00051506,120]
[356868815,1743346259351,-2232.9,0.00051506,120]
[356868816,1743346259360,-500.0,0.00051506,120]
[356868817,1743346259370,-699.29,0.00051506,120]
[356868818,1743346259379,-500.0,0.00051506,120]
[356868819,1743346259388,-500.0,0.00051506,120]
[356868820,1743346259398,-500.0,0.00051506,120]
[356868821,1743346259407,-500.0,0.00051506,120]
[356868822,1743346259417,-234.24,0.00051506,7]
[356868823,1743346259426,-187.01044118,0.00051506,120]
[356868824,1743346259435,-506.44,0.00051506,120]
[356868825,1743346259445,-500.0,0.00051506,120]
[356868826,1743346259455,-500.0,0.00051506,120]
[356868827,1743346259465,-500.0,0.00051506,120]
[356868828,1743346259474,-732.51,0.00051506,120]
[356868829,1743346259484,-2815.39,0.00051506,120]
[356868830,1743346259493,-381.76525422,0.00051506,120]
[356868831,1743346259503,-500.0,0.00051506,120]
[356868832,1743346259512,-500.0,0.00051506,120]
[356868833,1743346259521,-500.0,0.00051506,120]
[356868834,1743346259531,-1274.94,0.00051506,120]
[356868835,1743346259540,-500.0,0.00051506,120]
[356868836,1743346259550,-500.0,0.00051506,120]
[356868837,1743346259559,-500.0,0.00051506,120]
[356868838,1743346259568,-1080.01,0.00051506,100]
[356868839,1743346259578,-500.0,0.00051506,120]
[356868840,1743346259588,-503.33,0.00051506,120]
[356868841,1743346259598,-500.0,0.00051506,120]
[356868842,1743346259608,-500.0,0.00051506,120]
[356868843,1743346259618,-500.0,0.00051506,120]
[356868844,1743346259628,-501.06,0.00051506,120]
[356868845,1743346259638,-480.22602527,0.00051506,120]
[356868846,1743346259647,-512.55,0.00051506,120]
[356868847,1743346259657,-5054.95,0.00051506,120]
[356868848,1743346259666,-500.0,0.00051506,120]
[356868849,1743346259676,-1035.75,0.00051506,120]
[356868850,1743346259687,-500.0,0.00051506,120]
[356868851,1743346259698,-500.0,0.00051506,120]
[356868852,1743346259707,-208.61016528,0.00051506,120]
[356868853,1743346259717,-500.0,0.00051506,120]
[356868854,1743346259726,-935.26,0.00051506,120]
[356868855,1743346259736,-1671.16,0.00051506,120]
[356868856,1743346259746,-1184.02,0.00051506,120]
[356868857,1743346259755,-500.0,0.00051506,120]
[356868858,1743346259765,-804.42,0.00051506,120]
[356868859,1743346259774,-500.0,0.00051506,120]
[356868860,1743346259784,-500.0,0.00051506,120]
[356868861,1743346259794,-500.0,0.00051506,120]
[356868862,1743346259804,-500.0,0.00051506,120]
[356868863,1743346259813,-1247.17,0.00051506,120]
[356868864,1743346259823,-500.0,0.00051506,120]
[356868865,1743346259833,-500.0,0.00051506,120]
[356868866,1743346259843,-336.76953438,0.00051506,120]
[356868867,1743346259852,-500.0,0.00051506,120]
[356868868,1743346259862,-500.0,0.00051506,120]
[356868869,1743346259871,-500.0,0.00051506,120]
[356868870,1743346259881,-500.0,0.00051506,120]
[356868871,1743346259891,-500.0,0.00051506,120]
[356868872,1743346259900,-500.0,0.00051506,120]
[356868873,1743346259910,-3995.83,0.00051506,120]
[356868874,1743346259923,-500.0,0.00051506,120]
[356868875,1743346259933,-500.0,0.00051506,120]
[356868876,1743346259942,-500.0,0.00051506,120]
[356868877,1743346259952,-551.86,0.00051506,120]
[356868878,1743346259963,-500.0,0.00051506,120]
[356868879,1743346259972,-1144.31,0.00051506,120]
[356868880,1743346259983,-500.0,0.00051506,120]
[356868881,1743346259992,-357.27691903,0.00051506,120]
[356868882,1743346260004,-500.0,0.00051506,120]
[356868883,1743346260014,-5469.89,0.00051506,120]
[356868884,1743346260025,-500.0,0.00051506,120]
[356868885,1743346260035,-500.0,0.00051506,120]
[356868886,1743346260045,-500.0,0.00051506,120]
[356868887,1743346260055,-634.12,0.00051506,120]
[356868888,1743346260065,-500.0,0.00051506,120]
[356868889,1743346260075,-511.4658519,0.00051506,120]
[356868890,1743346260084,-500.0,0.00051506,120]
[356868891,1743346260094,-765.27,0.00051506,120]
[356868892,1743346260104,-553.68,0.00051506,120]
[356868893,1743346260114,-500.0,0.00051506,120]
[356868894,1743346260124,-1194.86,0.00051506,120]
[356868895,1743346260134,-1492.47,0.00051506,120]
[356868896,1743346260144,-500.0,0.00051506,120]
[356868897,1743346260154,-1345.57,0.00051506,120]
[356868898,1743346260164,-329.055079,0.00051506,120]
[356868899,1743346260174,-634.73,0.00051506,120]
[356868900,1743346260184,-257.12777864,0.00051506,120]
[356868901,1743346260194,-542.75,0.00051506,120]
[356868902,1743346260204,-329.055079,0.00051506,120]
[356868903,1743346260213,-500.0,0.00051506,120]
[356868904,1743346260223,-942.51,0.00051506,120]
[356868905,1743346260234,-1289.53,0.00051506,7]
[356868906,1743346260244,-500.0,0.00051506,120]
[356868907,1743346260254,-2763.1,0.00051506,120]
[356868908,1743346260263,-229.945801,0.00051506,120]
[356868909,1743346260273,-521.18,0.00051506,120]
[356868910,1743346260282,-3033.67,0.00051506,120]
[356868911,1743346260379,-500.0,0.00051506,120]
[356868912,1743346260390,-500.0,0.00051506,120]
[356868913,1743346260399,-213.33839642,0.00051506,120]
[356868914,1743346260409,-500.0,0.00051506,120]
[356868915,1743346260418,-500.0,0.00051506,120]
[356868916,1743346260427,-500.0,0.00051506,120]
[356868917,1743346260437,-1628.66,0.00051506,120]
[356868918,1743346260447,-500.0,0.00051506,120]
[356868919,1743346260456,-500.0,0.00051506,120]
[356868920,1743346260467,-500.0,0.00051506,120]
[356868921,1743346260477,-500.0,0.00051506,120]
[356868922,1743346260487,-500.0,0.00051506,120]
[356868923,1743346260498,-2681.66,0.00051506,120]
[356868924,1743346260507,-500.0,0.00051506,120]
[356868925,1743346260517,-808.39,0.0005178,120]
[356868926,1743346260527,-1090.28,0.0005178,120]
[356868927,1743346260537,-500.0,0.0005178,120]
[356868928,1743346260547,-2456.74,0.0005178,120]
[356868929,1743346260556,-500.0,0.0005178,120]
[356868930,1743346260566,-487.30605373,0.0005178,120]
[356868931,1743346260575,-589.26,0.0005178,120]
[356868932,1743346260585,-500.0,0.0005178,120]
[356868933,1743346260594,-188.18711323,0.0005178,120]
[356868934,1743346260604,-2232.9,0.0005178,120]
[356868935,1743346260614,-500.0,0.0005178,120]
[356868936,1743346260624,-699.29,0.0005178,120]
[356868937,1743346260633,-500.0,0.0005178,120]
[356868938,1743346260643,-500.0,0.0005178,120]
[356868939,1743346260652,-500.0,0.0005178,120]
[356868940,1743346260662,-500.0,0.0005178,120]
[356868941,1743346260671,-234.24,0.0005178,7]
[356868942,1743346260681,-506.44,0.0005178,120]
[356868943,1743346260690,-500.0,0.0005178,120]
[356868944,1743346260700,-500.0,0.0005178,120]
[356868945,1743346260710,-500.0,0.0005178,120]
[356868946,1743346260719,-732.51,0.0005178,120]
[356868947,1743346260729,-2815.39,0.0005178,120]
[356868948,1743346260739,-500.0,0.0005178,120]
[356868949,1743346260754,-500.0,0.0005178,120]
[356868950,1743346260764,-500.0,0.0005178,120]
[356868951,1743346260774,-1274.94,0.0005178,120]
[356868952,1743346260783,-500.0,0.0005178,120]
[356868953,1743346260793,-500.0,0.0005178,120]
[356868954,1743346260803,-500.0,0.0005178,120]
[356868955,1743346260812,-1080.01,0.0005178,100]
[356868956,1743346260822,-500.0,0.0005178,120]
[356868957,1743346260832,-503.33,0.0005178,120]
[356868958,1743346260841,-500.0,0.0005178,120]
[356868959,1743346260851,-500.0,0.0005178,120]
[356868960,1743346260860,-500.0,0.0005178,120]
[356868961,1743346260870,-501.06,0.0005178,120]
[356868962,1743346260879,-512.55,0.0005178,120]
[356868963,1743346260888,-5054.95,0.0005178,120]
[356868964,1743346260897,-500.0,0.0005178,120]
[356868965,1743346260907,-1035.75,0.0005178,120]
[356868966,1743346260917,-500.0,0.0005178,120]
[356868967,1743346260929,-500.0,0.0005178,120]
[356868968,1743346260938,-500.0,0.0005178,120]
[356868969,1743346260947,-935.26,0.0005178,120]
[356868970,1743346260957,-1671.16,0.0005178,120]
[356868971,1743346260967,-1184.02,0.0005178,120]
[356868972,1743346260976,-500.0,0.0005178,120]
[356868973,1743346260986,-804.42,0.0005178,120]
[356868974,1743346260996,-619.31,0.0005178,120]
[356868975,1743346261007,-500.0,0.0005178,120]
[356868976,1743346261017,-500.0,0.0005178,120]
[356868977,1743346261027,-500.0,0.0005178,120]
[356868978,1743346261036,-1247.17,0.0005178,120]
[356868979,1743346261046,-500.0,0.0005178,120]
[356868980,1743346261055,-500.0,0.0005178,120]
[356868981,1743346261065,-500.0,0.0005178,120]
[356868982,1743346261074,-545.88875356,0.0005178,120]
[356868983,1743346261083,-500.0,0.0005178,120]
[356868984,1743346261093,-500.0,0.0005178,120]
[356868985,1743346261103,-500.0,0.0005178,120]
[356868986,1743346261112,-370.60969379,0.0005178,120]
[356868987,1743346261122,-3995.83,0.0005178,120]
[356868988,1743346261131,-500.0,0.0005178,120]
[356868989,1743346261140,-500.0,0.0005178,120]
[356868990,1743346261150,-500.0,0.0005178,120]
[356868991,1743346261160,-551.86,0.0005178,120]
[356868992,1743346261170,-500.0,0.0005178,120]
[356868993,1743346261179,-1144.31,0.0005178,120]
[356868994,1743346261189,-500.0,0.0005178,120]
[356868995,1743346261199,-500.0,0.0005178,120]
[356868996,1743346261209,-5469.89,0.0005178,120]
[356868997,1743346261219,-500.0,0.0005178,120]
[356868998,1743346261228,-172.41437281,0.0005178,120]
[356868999,1743346261238,-500.0,0.0005178,120]
[356869000,1743346261247,-634.12,0.0005178,120]
[356869001,1743346261256,-500.0,0.0005178,120]
[356869002,1743346261266,-500.0,0.0005178,120]
[356869003,1743346261275,-765.27,0.0005178,120]
[356869004,1743346261285,-553.68,0.0005178,120]
[356869005,1743346261295,-500.0,0.0005178,120]
[356869006,1743346261305,-1194.86,0.0005178,120]
[356869007,1743346261314,-1492.47,0.0005178,120]
[356869008,1743346261323,-500.0,0.0005178,120]
[356869009,1743346261333,-1345.57,0.0005178,120]
[356869010,1743346261343,-634.73,0.0005178,120]
[356869011,1743346261353,-542.75,0.0005178,120]
[356869012,1743346261363,-567.59106788,0.0005178,120]
[356869013,1743346261371,-942.51,0.0005178,120]
[356869014,1743346261381,-1289.53,0.0005178,7]
[356869015,1743346261390,-500.0,0.0005178,120]
[356869016,1743346261399,-2763.1,0.0005178,120]
[356869017,1743346261409,-521.18,0.0005178,120]
[356869018,1743346261418,-3033.67,0.0005178,120]
[356869019,1743346261428,-500.0,0.0005178,120]
[356869020,1743346261438,-500.0,0.0005178,120]
[356869021,1743346261448,-500.0,0.0005178,120]
[356869022,1743346261459,-500.0,0.0005178,120]
[356869023,1743346261470,-500.0,0.0005178,120]
[356869024,1743346261479,-500.0,0.0005178,120]
[356869025,1743346261489,-1628.66,0.0005178,120]
[356869026,1743346261498,-500.0,0.0005178,120]
[356869027,1743346261508,-500.0,0.0005178,120]
[356869028,1743346261518,-500.0,0.0005178,120]
[356869029,1743346261528,-500.0,0.0005178,120]
[356869030,1743346261538,-2681.66,0.0005178,120]
[356869031,1743346261547,-220.97532154,0.0005178,120]
[356869032,1743346261557,-250.0,0.00052,120]
[356869033,1743346261567,-808.39,0.00052054,120]
[356869034,1743346261576,-1090.28,0.00052054,120]
[356869035,1743346261586,-500.0,0.00052054,120]
[356869036,1743346261596,-2456.74,0.00052054,120]
[356869037,1743346261605,-500.0,0.00052054,120]
[356869038,1743346261615,-589.26,0.00052054,120]
[356869039,1743346261624,-500.0,0.00052054,120]
[356869040,1743346261633,-2232.9,0.00052054,120]
[356869041,1743346261642,-500.0,0.00052054,120]
[356869042,1743346261652,-699.29,0.00052054,120]
[356869043,1743346261662,-500.0,0.00052054,120]
[356869044,1743346261671,-500.0,0.00052054,120]
[356869045,1743346261762,-500.0,0.00052054,120]
[356869046,1743346261772,-500.0,0.00052054,120]
[356869047,1743346261782,-234.24,0.00052054,7]
[356869048,1743346261792,-506.44,0.00052054,120]
[356869049,1743346261802,-500.0,0.00052054,120]
[356869050,1743346261811,-500.0,0.00052054,120]
[356869051,1743346261821,-500.0,0.00052054,120]
[356869052,1743346261832,-732.51,0.00052054,120]
[356869053,1743346261842,-2815.39,0.00052054,120]
[356869054,1743346261852,-500.0,0.00052054,120]
[356869055,1743346261861,-500.0,0.00052054,120]
[356869056,1743346261870,-500.0,0.00052054,120]
[356869057,1743346261879,-1274.94,0.00052054,120]
[356869058,1743346261889,-500.0,0.00052054,120]
[356869059,1743346261899,-500.0,0.00052054,120]
[356869060,1743346261908,-500.0,0.00052054,120]
[356869061,1743346261920,-1080.01,0.00052054,100]
[356869062,1743346261931,-500.0,0.00052054,120]
[356869063,1743346261940,-503.33,0.00052054,120]
[356869064,1743346261951,-500.0,0.00052054,120]
[356869065,1743346261960,-500.0,0.00052054,120]
[356869066,1743346261970,-2000.0,0.00052054,120]
[356869067,1743346261980,-2000.0,0.00052054,120]
[356869068,1743346261990,-2000.0,0.00052054,120]
[356869069,1743346262001,-2000.0,0.00052054,120]
[356869070,1743346262011,-2000.0,0.00052054,120]
[356869071,1743346262021,-500.0,0.00052054,120]
[356869072,1743346262031,-500.0,0.00052054,120]
[356869073,1743346262039,-501.06,0.00052054,120]
[356869074,1743346262048,-512.55,0.00052054,120]
[356869075,1743346262058,-5054.95,0.00052054,120]
[356869076,1743346262067,-500.0,0.00052054,120]
[356869077,1743346262075,-1035.75,0.00052054,120]
[356869078,1743346262085,-500.0,0.00052054,120]
[356869079,1743346262094,-560.23474151,0.00052054,120]
[356869080,1743346262102,-500.0,0.00052054,120]
[356869081,1743346262111,-935.26,0.00052054,120]
[356869082,1743346262121,-1671.16,0.00052054,120]
[356869083,1743346262130,-1184.02,0.00052054,120]
[356869084,1743346262140,-500.0,0.00052054,120]
[356869085,1743346262149,-804.42,0.00052054,120]
[356869086,1743346262158,-500.0,0.00052054,120]
[356869087,1743346262168,-500.0,0.00052054,120]
[356869088,1743346262177,-500.0,0.00052054,120]
[356869089,1743346262187,-1247.17,0.00052054,120]
[356869090,1743346262197,-352.00518137,0.00052054,120]
[356869091,1743346262206,-500.0,0.00052054,120]
[356869092,1743346262215,-500.0,0.00052054,120]
[356869093,1743346262225,-500.0,0.00052054,120]
[356869094,1743346262234,-500.0,0.00052054,120]
[356869095,1743346262243,-500.0,0.00052054,120]
[356869096,1743346262253,-3995.83,0.00052054,120]
[356869097,1743346262263,-500.0,0.00052054,120]
[356869098,1743346262272,-500.0,0.00052054,120]
[356869099,1743346262282,-500.0,0.00052054,120]
[356869100,1743346262292,-551.86,0.00052054,120]
[356869101,1743346262301,-500.0,0.00052054,120]
[356869102,1743346262311,-1144.31,0.00052054,120]
[356869103,1743346262322,-500.0,0.00052054,120]
[356869104,1743346262331,-500.0,0.00052054,120]
[356869105,1743346262341,-5469.89,0.00052054,120]
[356869106,1743346262355,-500.0,0.00052054,120]
[356869107,1743346262377,-500.0,0.00052054,120]
[356869108,1743346262395,-634.12,0.00052054,120]
[356869109,1743346262415,-627.18830355,0.00052054,120]
[356869110,1743346262433,-500.0,0.00052054,120]
[356869111,1743346262450,-765.27,0.00052054,120]
[356869112,1743346262471,-553.68,0.00052054,120]
[356869113,1743346262492,-546.93840371,0.00052054,120]
[356869114,1743346262511,-1194.86,0.00052054,120]
[356869115,1743346262530,-1492.47,0.00052054,120]
[356869116,1743346262547,-500.0,0.00052054,120]
[356869117,1743346262567,-1345.57,0.00052054,120]
[356869118,1743346262581,-634.73,0.00052054,120]
[356869119,1743346262602,-542.75,0.00052054,120]
[356869120,1743346262615,-942.51,0.00052054,120]
[356869121,1743346262633,-1289.53,0.00052054,7]
[356869122,1743346262648,-500.0,0.00052054,120]
[356869123,1743346262664,-2763.1,0.00052054,120]
[356869124,1743346262678,-521.18,0.00052054,120]
[356869125,1743346262694,-3033.67,0.00052054,120]
[356869126,1743346262710,-500.0,0.00052054,120]
[356869127,1743346262724,-500.0,0.00052054,120]
[356869128,1743346262739,-500.0,0.00052054,120]
[356869129,1743346262754,-500.0,0.00052054,120]
[356869130,1743346262768,-364.92515676,0.00052054,120]
[356869131,1743346262783,-500.0,0.00052054,120]
[356869132,1743346262797,-1628.66,0.00052054,120]
[356869133,1743346262811,-500.0,0.00052054,120]
[356869134,1743346262826,-500.0,0.00052054,120]
[356869135,1743346262841,-500.0,0.00052054,120]
[356869136,1743346262856,-500.0,0.00052054,120]
[356869137,1743346262871,-2681.66,0.00052054,120]
[356869138,1743346262886,-500.0,0.00052278,60]
[356869139,1743346262900,-808.39,0.00052328,120]
[356869140,1743346262915,-1090.28,0.00052328,120]
[356869141,1743346262933,-500.0,0.00052328,120]
[356869142,1743346262950,-2456.74,0.00052328,120]
[356869143,1743346262964,-500.0,0.00052328,120]
[356869144,1743346262979,-589.26,0.00052328,120]